[Event "Late-Titled-Tuesday-Blitz-September-26-2023"]
[Site "Chess.com"]
[Date "2023.09.26"]
[Round "2"]
[White "Inepton_Fermion"]
[Black "GothamChess"]
[Result "0-1"]
[WhiteElo "2362"]
[BlackElo "2703"]
[TimeControl "180+1"]
[EndTime "14:18:10 PDT"]
[Termination "GothamChess won by resignation"]

1. Nf3 {[%clk 0:03:00.9]} 1... b6 {[%clk 0:02:57.4]} 2. b3 {[%clk 0:03:00.1]}
2... Bb7 {[%clk 0:02:55.1]} 3. Bb2 {[%clk 0:03:00.3]} 3... e6 {[%clk 0:02:55.1]}
4. g3 {[%clk 0:02:59.9]} 4... f5 {[%clk 0:02:55.1]} 5. Bg2 {[%clk 0:03:00.1]}
5... Nf6 {[%clk 0:02:55.7]} 6. O-O {[%clk 0:03:00.6]} 6... g6 {[%clk 0:02:52.1]}
7. c4 {[%clk 0:02:57.5]} 7... Bg7 {[%clk 0:02:51.8]} 8. d3 {[%clk 0:02:56.3]}
8... O-O {[%clk 0:02:52.2]} 9. Nc3 {[%clk 0:02:53.5]} 9... d6 {[%clk 0:02:42.5]}
10. Qc2 {[%clk 0:02:36.1]} 10... Qe7 {[%clk 0:02:34.6]} 11. d4 {[%clk
0:02:18.2]} 11... Na6 {[%clk 0:02:22.8]} 12. a3 {[%clk 0:02:15.9]} 12... Rab8
{[%clk 0:02:14]} 13. Rfe1 {[%clk 0:02:09.5]} 13... Ne4 {[%clk 0:02:12.2]} 14.
Nd2 {[%clk 0:01:59.1]} 14... Nxd2 {[%clk 0:02:04.7]} 15. Qxd2 {[%clk 0:02:00]}
15... Bxg2 {[%clk 0:02:04.3]} 16. Kxg2 {[%clk 0:02:00.9]} 16... c5 {[%clk
0:02:01.5]} 17. d5 {[%clk 0:01:56.8]} 17... e5 {[%clk 0:01:59.9]} 18. e4 {[%clk
0:01:56.7]} 18... f4 {[%clk 0:02:00.2]} 19. f3 {[%clk 0:01:55]} 19... h5 {[%clk
0:01:52.3]} 20. Ne2 {[%clk 0:01:26.1]} 20... Bh6 {[%clk 0:01:50.7]} 21. Qd3
{[%clk 0:01:06.8]} 21... Rf7 {[%clk 0:01:47.6]} 22. Bc1 {[%clk 0:01:02.5]} 22...
Rbf8 {[%clk 0:01:37.1]} 23. gxf4 {[%clk 0:01:02.4]} 23... Qh4 {[%clk 0:01:31.1]}
24. Be3 {[%clk 0:00:51.7]} 24... exf4 {[%clk 0:01:05.2]} 25. Bf2 {[%clk
0:00:43.4]} 25... Qg5+ {[%clk 0:01:04.2]} 26. Kh1 {[%clk 0:00:43.6]} 26... Bg7
{[%clk 0:00:56.1]} 27. Rg1 {[%clk 0:00:39.3]} 27... Qh6 {[%clk 0:00:50.9]} 28.
Rab1 {[%clk 0:00:38.3]} 28... g5 {[%clk 0:00:50.1]} 29. Rg2 {[%clk 0:00:32.4]}
29... Kh8 {[%clk 0:00:48.5]} 30. Rbg1 {[%clk 0:00:32]} 30... Bf6 {[%clk
0:00:48.9]} 31. Be1 {[%clk 0:00:29.9]} 31... Rg8 {[%clk 0:00:44.5]} 32. Bc3
{[%clk 0:00:27.3]} 32... Rfg7 {[%clk 0:00:44.7]} 33. Bxf6 {[%clk 0:00:22.7]}
33... Qxf6 {[%clk 0:00:44.6]} 34. Qc3 {[%clk 0:00:16.5]} 34... Qxc3 {[%clk
0:00:40.1]} 35. Nxc3 {[%clk 0:00:17.4]} 35... Nc7 {[%clk 0:00:40.3]} 36. h3
{[%clk 0:00:16.8]} 36... Kh7 {[%clk 0:00:40]} 37. Kh2 {[%clk 0:00:12.2]} 37...
Ne8 {[%clk 0:00:40.2]} 38. Nb5 {[%clk 0:00:11.9]} 38... a6 {[%clk 0:00:38]} 39.
Nc3 {[%clk 0:00:11.9]} 39... Nf6 {[%clk 0:00:37.8]} 40. Rf2 {[%clk 0:00:03.4]}
40... Nd7 {[%clk 0:00:35.6]} 41. Rgf1 {[%clk 0:00:02.7]} 41... Ne5 {[%clk
0:00:35.8]} 42. Nb1 {[%clk 0:00:02.4]} 42... b5 {[%clk 0:00:35.9]} 43. Nd2
{[%clk 0:00:02.5]} 43... Rb7 {[%clk 0:00:36.3]} 44. Rg1 {[%clk 0:00:02]} 44...
Kh6 {[%clk 0:00:36.7]} 45. Rfg2 {[%clk 0:00:01.9]} 45... bxc4 {[%clk 0:00:32.9]}
46. bxc4 {[%clk 0:00:02.8]} 46... Rb2 {[%clk 0:00:32.8]} 47. Rf2 {[%clk
0:00:01.8]} 47... Rxd2 {[%clk 0:00:32.9]} 48. Rfg2 {[%clk 0:00:01.3]} 48...
Nxf3+ {[%clk 0:00:32.9]} 49. Kh1 {[%clk 0:00:01.5]} 49... Rxg2 {[%clk
0:00:32.1]} 50. Rxg2 {[%clk 0:00:01.6]} 50... Rb8 {[%clk 0:00:30.6]} 51. Rf2
{[%clk 0:00:01.8]} 51... g4 {[%clk 0:00:30.3]} 52. hxg4 {[%clk 0:00:02]} 52...
hxg4 {[%clk 0:00:31.2]} 53. Ra2 {[%clk 0:00:01.8]} 53... Kg6 {[%clk 0:00:31.4]}
54. Kg2 {[%clk 0:00:02.3]} 54... Kf6 {[%clk 0:00:31.9]} 55. a4 {[%clk
0:00:02.8]} 55... Ke5 {[%clk 0:00:32.3]} 56. a5 {[%clk 0:00:03.4]} 56... Kxe4
{[%clk 0:00:32.8]} 57. Re2+ {[%clk 0:00:03.6]} 57... Kd4 {[%clk 0:00:33.2]} 58.
Re8 {[%clk 0:00:04.2]} 0-1

[Event "Late-Titled-Tuesday-Blitz-September-26-2023"]
[Site "Chess.com"]
[Date "2023.09.26"]
[Round "2"]
[White "Willychess95"]
[Black "falzehope0"]
[Result "1-0"]
[WhiteElo "2702"]
[BlackElo "2349"]
[TimeControl "180+1"]
[EndTime "14:18:10 PDT"]
[Termination "Willychess95 won by resignation"]

1. e4 {[%clk 0:02:59.5]} 1... d5 {[%clk 0:02:58.7]} 2. e5 {[%clk 0:02:57.6]}
2... c5 {[%clk 0:02:58.3]} 3. f4 {[%clk 0:02:57.4]} 3... Nh6 {[%clk 0:02:56.6]}
4. Nf3 {[%clk 0:02:56]} 4... Bg4 {[%clk 0:02:54.3]} 5. Be2 {[%clk 0:02:53.4]}
5... Nc6 {[%clk 0:02:45.5]} 6. d3 {[%clk 0:02:50.8]} 6... Nf5 {[%clk 0:02:43.6]}
7. c3 {[%clk 0:02:47.5]} 7... e6 {[%clk 0:02:43.1]} 8. O-O {[%clk 0:02:43]} 8...
Qb6 {[%clk 0:02:40]} 9. b3 {[%clk 0:02:27.4]} 9... Be7 {[%clk 0:02:35.5]} 10. h3
{[%clk 0:02:16.6]} 10... Bxf3 {[%clk 0:02:32.4]} 11. Bxf3 {[%clk 0:02:16.7]}
11... g6 {[%clk 0:02:22.7]} 12. Na3 {[%clk 0:02:01.1]} 12... h5 {[%clk 0:02:10]}
13. Nc2 {[%clk 0:01:56.1]} 13... Qa5 {[%clk 0:02:05.1]} 14. Bd2 {[%clk
0:01:51.1]} 14... Qa6 {[%clk 0:02:04.1]} 15. c4 {[%clk 0:01:49.9]} 15... d4
{[%clk 0:01:59.8]} 16. Be4 {[%clk 0:01:46.8]} 16... Ng3 {[%clk 0:01:56.7]} 17.
Re1 {[%clk 0:01:45.9]} 17... Nxe4 {[%clk 0:01:49.5]} 18. Rxe4 {[%clk 0:01:45.6]}
18... Bh4 {[%clk 0:01:47.1]} 19. a3 {[%clk 0:01:43.1]} 19... Be7 {[%clk
0:01:43.3]} 20. b4 {[%clk 0:01:39]} 20... Qb6 {[%clk 0:01:38.3]} 21. b5 {[%clk
0:01:37.4]} 21... Nb8 {[%clk 0:01:27.1]} 22. a4 {[%clk 0:01:37.4]} 22... Qd8
{[%clk 0:01:24.6]} 23. a5 {[%clk 0:01:35.2]} 23... Nd7 {[%clk 0:01:23.4]} 24.
Be1 {[%clk 0:01:28.8]} 24... Rc8 {[%clk 0:01:22.1]} 25. Na3 {[%clk 0:01:24.5]}
25... Kf8 {[%clk 0:01:15]} 26. Nb1 {[%clk 0:01:24]} 26... Kg7 {[%clk 0:01:14.1]}
27. Nd2 {[%clk 0:01:23.7]} 27... Qc7 {[%clk 0:01:10.8]} 28. Qf3 {[%clk
0:01:21.1]} 28... Rcg8 {[%clk 0:01:09.1]} 29. Re2 {[%clk 0:01:19.5]} 29... Kf8
{[%clk 0:01:08.9]} 30. a6 {[%clk 0:01:14.6]} 30... b6 {[%clk 0:01:08.7]} 31. Qb7
{[%clk 0:01:13]} 31... Bd8 {[%clk 0:01:06.4]} 32. Ne4 {[%clk 0:01:09.9]} 32...
Kg7 {[%clk 0:00:59.6]} 33. Bh4 {[%clk 0:00:54.8]} 33... Kh6 {[%clk 0:00:42.9]}
34. Bg5+ {[%clk 0:00:51.5]} 34... Kh7 {[%clk 0:00:40.5]} 35. Bxd8 {[%clk
0:00:44.3]} 35... Qxd8 {[%clk 0:00:39.2]} 36. Qxd7 {[%clk 0:00:43]} 36... Qxd7
{[%clk 0:00:37]} 37. Nf6+ {[%clk 0:00:43.2]} 37... Kg7 {[%clk 0:00:36.8]} 38.
Nxd7 {[%clk 0:00:44.1]} 38... Rd8 {[%clk 0:00:33.7]} 39. Nf6 {[%clk 0:00:42.5]}
39... Rc8 {[%clk 0:00:30.3]} 40. Kf2 {[%clk 0:00:41.8]} 40... Rcd8 {[%clk
0:00:29.2]} 41. h4 {[%clk 0:00:41.8]} 41... Rc8 {[%clk 0:00:26.8]} 42. Kf3
{[%clk 0:00:42]} 42... Rcd8 {[%clk 0:00:26.8]} 43. Rg1 {[%clk 0:00:42.5]} 43...
Kf8 {[%clk 0:00:23.6]} 44. g4 {[%clk 0:00:42.4]} 44... hxg4+ {[%clk 0:00:23.9]}
45. Rxg4 {[%clk 0:00:43.3]} 45... Ke7 {[%clk 0:00:24.1]} 46. Rh2 {[%clk
0:00:43.6]} 46... Rh6 {[%clk 0:00:22]} 47. h5 {[%clk 0:00:43.5]} 47... Rdh8
{[%clk 0:00:18.8]} 48. Rhh4 {[%clk 0:00:41.2]} 48... gxh5 {[%clk 0:00:17.6]} 49.
Rg5 {[%clk 0:00:41.1]} 49... Kf8 {[%clk 0:00:17.5]} 50. Rgxh5 {[%clk 0:00:40.7]}
50... Rxh5 {[%clk 0:00:17.6]} 51. Rxh5 {[%clk 0:00:41.2]} 51... Rxh5 {[%clk
0:00:18.2]} 52. Nxh5 {[%clk 0:00:41.5]} 52... Ke7 {[%clk 0:00:18]} 53. Nf6
{[%clk 0:00:41.9]} 53... Kf8 {[%clk 0:00:18.6]} 54. Nd7+ {[%clk 0:00:39.7]}
54... Ke7 {[%clk 0:00:19.5]} 55. Nxb6 {[%clk 0:00:39.5]} 55... Kd8 {[%clk
0:00:19.2]} 56. Na4 {[%clk 0:00:39.6]} 56... Kc7 {[%clk 0:00:19.6]} 57. Nxc5
{[%clk 0:00:39.7]} 57... Kc8 {[%clk 0:00:20.2]} 58. Nb3 {[%clk 0:00:39.7]} 58...
Kb8 {[%clk 0:00:21.1]} 59. Nxd4 {[%clk 0:00:39.9]} 59... Kc8 {[%clk 0:00:22]}
60. Kg4 {[%clk 0:00:40.1]} 60... Kc7 {[%clk 0:00:21.9]} 61. c5 {[%clk
0:00:40.6]} 61... Kc8 {[%clk 0:00:22.2]} 62. Kg5 {[%clk 0:00:41]} 62... Kc7
{[%clk 0:00:22.8]} 63. Kf6 {[%clk 0:00:41.6]} 63... Kc8 {[%clk 0:00:23.3]} 64.
b6 {[%clk 0:00:42]} 64... axb6 {[%clk 0:00:22.6]} 65. cxb6 {[%clk 0:00:42.9]}
65... Kb8 {[%clk 0:00:23.1]} 66. Nc6+ {[%clk 0:00:42.7]} 66... Kc8 {[%clk
0:00:23.4]} 67. Ke7 {[%clk 0:00:38]} 67... f5 {[%clk 0:00:22.7]} 68. exf6 {[%clk
0:00:38.9]} 68... e5 {[%clk 0:00:22]} 69. f7 {[%clk 0:00:39.8]} 1-0

[Event "Late-Titled-Tuesday-Blitz-September-26-2023"]
[Site "Chess.com"]
[Date "2023.09.26"]
[Round "2"]
[White "Nf3c5"]
[Black "micke12a"]
[Result "1-0"]
[WhiteElo "2592"]
[BlackElo "2362"]
[TimeControl "180+1"]
[EndTime "14:18:11 PDT"]
[Termination "Nf3c5 won on time"]

1. e4 {[%clk 0:03:00.9]} 1... c5 {[%clk 0:02:58.1]} 2. Nf3 {[%clk 0:02:59.7]}
2... d6 {[%clk 0:02:57]} 3. Nc3 {[%clk 0:02:58.2]} 3... Nf6 {[%clk 0:02:56.9]}
4. e5 {[%clk 0:02:58.3]} 4... dxe5 {[%clk 0:02:56.7]} 5. Nxe5 {[%clk 0:02:59.2]}
5... Nbd7 {[%clk 0:02:56.4]} 6. d4 {[%clk 0:02:57.7]} 6... cxd4 {[%clk
0:02:54.9]} 7. Qxd4 {[%clk 0:02:56.6]} 7... e6 {[%clk 0:02:53.2]} 8. Nc4 {[%clk
0:02:14.2]} 8... Bc5 {[%clk 0:02:42.7]} 9. Qh4 {[%clk 0:02:06.2]} 9... O-O
{[%clk 0:02:38.1]} 10. Bd3 {[%clk 0:02:02.7]} 10... Nb6 {[%clk 0:02:12]} 11. Bg5
{[%clk 0:01:52]} 11... h6 {[%clk 0:02:11.5]} 12. Bxh6 {[%clk 0:00:59.4]} 12...
gxh6 {[%clk 0:02:04.7]} 13. Qxh6 {[%clk 0:00:59.2]} 13... Nxc4 {[%clk
0:01:51.4]} 14. O-O-O {[%clk 0:00:51.1]} 14... Qb6 {[%clk 0:00:57.7]} 15. b3
{[%clk 0:00:45.2]} 15... Be3+ {[%clk 0:00:43.2]} 16. fxe3 {[%clk 0:00:40.1]}
16... Qxe3+ {[%clk 0:00:42]} 17. Qxe3 {[%clk 0:00:36.5]} 17... Nxe3 {[%clk
0:00:42.9]} 18. Rde1 {[%clk 0:00:35.4]} 18... Ned5 {[%clk 0:00:42]} 19. Ne2
{[%clk 0:00:20]} 19... Bd7 {[%clk 0:00:40.1]} 20. Rhf1 {[%clk 0:00:20]} 20...
Kg7 {[%clk 0:00:39.6]} 21. Rf3 {[%clk 0:00:20.2]} 21... Rg8 {[%clk 0:00:37.5]}
22. Ref1 {[%clk 0:00:19.7]} 22... Rac8 {[%clk 0:00:23.1]} 23. a3 {[%clk
0:00:18.8]} 23... b5 {[%clk 0:00:22.1]} 24. Kb2 {[%clk 0:00:18.8]} 24... a5
{[%clk 0:00:14.7]} 25. c4 {[%clk 0:00:18.7]} 25... bxc4 {[%clk 0:00:15.2]} 26.
bxc4 {[%clk 0:00:19.6]} 26... Be8 {[%clk 0:00:13.4]} 27. cxd5 {[%clk 0:00:19.2]}
27... Nxd5 {[%clk 0:00:14.3]} 28. Nd4 {[%clk 0:00:17.2]} 28... Ra8 {[%clk
0:00:14.1]} 29. Rg3+ {[%clk 0:00:16.8]} 29... Kh8 {[%clk 0:00:12.4]} 30. Rh3+
{[%clk 0:00:17.2]} 30... Kg7 {[%clk 0:00:12.5]} 31. Rh7+ {[%clk 0:00:17.1]}
31... Kf8 {[%clk 0:00:12.4]} 32. Nxe6+ {[%clk 0:00:17.7]} 32... Ke7 {[%clk
0:00:13]} 33. Nd4 {[%clk 0:00:17.7]} 33... Rb8+ {[%clk 0:00:13.3]} 34. Ka1
{[%clk 0:00:17.3]} 34... Rxg2 {[%clk 0:00:13.1]} 35. Re1+ {[%clk 0:00:17.4]}
35... Kd6 {[%clk 0:00:13.1]} 36. Nf5+ {[%clk 0:00:17.5]} 36... Kc5 {[%clk
0:00:13.1]} 37. Be4 {[%clk 0:00:18]} 37... Nc3 {[%clk 0:00:12.7]} 38. Bxg2
{[%clk 0:00:17.5]} 38... Bd7 {[%clk 0:00:10.9]} 39. Ne3 {[%clk 0:00:17.3]} 39...
Be6 {[%clk 0:00:09.6]} 40. Rh5+ {[%clk 0:00:17.2]} 40... Kd4 {[%clk 0:00:09.3]}
41. Rh4+ {[%clk 0:00:17.7]} 41... Kd3 {[%clk 0:00:08.8]} 42. Bf1+ {[%clk
0:00:15.9]} 42... Kd2 {[%clk 0:00:09.1]} 43. Ng2 {[%clk 0:00:14.5]} 43... Bb3
{[%clk 0:00:03.1]} 44. Rd4+ {[%clk 0:00:14.5]} 44... Kc2 {[%clk 0:00:03]} 45.
Bd3+ {[%clk 0:00:13.4]} 45... Kd2 {[%clk 0:00:02.9]} 46. Bf1+ {[%clk 0:00:12.6]}
46... Kc2 {[%clk 0:00:01.8]} 47. Rf4 {[%clk 0:00:12.9]} 1-0

[Event "Late-Titled-Tuesday-Blitz-September-26-2023"]
[Site "Chess.com"]
[Date "2023.09.26"]
[Round "2"]
[White "Dhaydon19"]
[Black "JG-17"]
[Result "1-0"]
[WhiteElo "2745"]
[BlackElo "2504"]
[TimeControl "180+1"]
[EndTime "14:18:13 PDT"]
[Termination "Dhaydon19 won by resignation"]

1. d4 {[%clk 0:03:00.9]} 1... d5 {[%clk 0:02:59.1]} 2. Nc3 {[%clk 0:03:00.7]}
2... Nf6 {[%clk 0:02:55.7]} 3. Bf4 {[%clk 0:03:00.6]} 3... c6 {[%clk 0:02:55.1]}
4. e3 {[%clk 0:03:00.8]} 4... Bf5 {[%clk 0:02:55]} 5. Bd3 {[%clk 0:03:00.6]}
5... Bxd3 {[%clk 0:02:54.8]} 6. cxd3 {[%clk 0:03:00.6]} 6... e6 {[%clk
0:02:51.8]} 7. g4 {[%clk 0:02:59.4]} 7... h6 {[%clk 0:02:46.7]} 8. h4 {[%clk
0:02:56.1]} 8... Bd6 {[%clk 0:02:43.4]} 9. Qf3 {[%clk 0:02:53]} 9... Bxf4 {[%clk
0:02:31.8]} 10. Qxf4 {[%clk 0:02:52.2]} 10... Nbd7 {[%clk 0:02:31.3]} 11. Nge2
{[%clk 0:02:49.8]} 11... Qe7 {[%clk 0:02:27]} 12. O-O-O {[%clk 0:02:47.9]} 12...
e5 {[%clk 0:02:27.1]} 13. dxe5 {[%clk 0:02:47.2]} 13... Qxe5 {[%clk 0:02:25.9]}
14. g5 {[%clk 0:02:40.3]} 14... Nh5 {[%clk 0:01:58.2]} 15. Qg4 {[%clk
0:02:37.2]} 15... g6 {[%clk 0:01:53.8]} 16. Nd4 {[%clk 0:02:29.1]} 16... O-O-O
{[%clk 0:01:51.7]} 17. Kb1 {[%clk 0:02:25.9]} 17... Kb8 {[%clk 0:01:50.4]} 18.
a4 {[%clk 0:02:18.1]} 18... a5 {[%clk 0:01:44.8]} 19. Nb3 {[%clk 0:02:11.8]}
19... Qc7 {[%clk 0:01:36.1]} 20. Rc1 {[%clk 0:02:08]} 20... Ne5 {[%clk
0:01:34.4]} 21. Qd4 {[%clk 0:02:01.3]} 21... Nf3 {[%clk 0:01:26.1]} 22. Qg4
{[%clk 0:01:51.7]} 22... Ne5 {[%clk 0:01:26]} 23. Qe2 {[%clk 0:01:48.1]} 23...
Qb6 {[%clk 0:01:26.2]} 24. Ka2 {[%clk 0:01:42.4]} 24... hxg5 {[%clk 0:01:25.5]}
25. hxg5 {[%clk 0:01:38]} 25... Rde8 {[%clk 0:01:15.9]} 26. Rh4 {[%clk
0:01:34.4]} 26... Ng7 {[%clk 0:01:12.4]} 27. Rch1 {[%clk 0:01:32]} 27... Rxh4
{[%clk 0:01:11.3]} 28. Rxh4 {[%clk 0:01:32.3]} 28... Nf5 {[%clk 0:01:11.8]} 29.
Rf4 {[%clk 0:01:28.4]} 29... Nd7 {[%clk 0:00:50.6]} 30. Qc2 {[%clk 0:01:24.5]}
30... Nc5 {[%clk 0:00:49.5]} 31. Nxc5 {[%clk 0:01:16.2]} 31... Qxc5 {[%clk
0:00:50.4]} 32. Qb3 {[%clk 0:01:10.8]} 32... d4 {[%clk 0:00:46.9]} 33. Ne4
{[%clk 0:01:06.7]} 33... Qe7 {[%clk 0:00:43.1]} 34. exd4 {[%clk 0:01:00.6]}
34... Nxd4 {[%clk 0:00:43.3]} 35. Qxf7 {[%clk 0:00:59.8]} 35... Ne6 {[%clk
0:00:34.1]} 36. Qxe7 {[%clk 0:00:58.9]} 36... Rxe7 {[%clk 0:00:35]} 37. Rf6
{[%clk 0:00:58.7]} 37... Ka7 {[%clk 0:00:28.3]} 38. Rxg6 {[%clk 0:00:58.7]}
38... Nf4 {[%clk 0:00:28.8]} 39. Rd6 {[%clk 0:00:56.4]} 39... Kb6 {[%clk
0:00:24.7]} 40. f3 {[%clk 0:00:53.5]} 40... Kc7 {[%clk 0:00:24.9]} 41. Rf6
{[%clk 0:00:50.9]} 41... Nxd3 {[%clk 0:00:23.9]} 42. g6 {[%clk 0:00:50.6]} 42...
Kd8 {[%clk 0:00:14.4]} 43. Rf8+ {[%clk 0:00:47.8]} 43... Kd7 {[%clk 0:00:13.6]}
44. Nf6+ {[%clk 0:00:39.7]} 44... Ke6 {[%clk 0:00:13.7]} 45. Nh5 {[%clk
0:00:40.3]} 45... Kd7 {[%clk 0:00:09.9]} 46. g7 {[%clk 0:00:34]} 46... b5 {[%clk
0:00:07.9]} 47. Kb3 {[%clk 0:00:31.8]} 47... Re3 {[%clk 0:00:06.3]} 48. Kc2
{[%clk 0:00:32]} 48... Nb4+ {[%clk 0:00:05.6]} 49. Kd2 {[%clk 0:00:32.5]} 49...
Rb3 {[%clk 0:00:02.1]} 50. g8=Q {[%clk 0:00:31.4]} 50... Rxb2+ {[%clk 0:00:03]}
51. Ke1 {[%clk 0:00:30.9]} 51... Rb1+ {[%clk 0:00:02.9]} 52. Kf2 {[%clk
0:00:30.1]} 52... Nd3+ {[%clk 0:00:01.7]} 53. Ke3 {[%clk 0:00:29]} 53... Re1+
{[%clk 0:00:01.1]} 54. Kxd3 {[%clk 0:00:28.4]} 54... Rd1+ {[%clk 0:00:01.2]} 55.
Ke2 {[%clk 0:00:28.5]} 1-0

[Event "Late-Titled-Tuesday-Blitz-September-26-2023"]
[Site "Chess.com"]
[Date "2023.09.26"]
[Round "2"]
[White "MKlose11"]
[Black "vugarrasulov"]
[Result "1-0"]
[WhiteElo "2620"]
[BlackElo "2943"]
[TimeControl "180+1"]
[EndTime "14:18:14 PDT"]
[Termination "MKlose11 won by resignation"]

1. e4 {[%clk 0:03:00.9]} 1... c5 {[%clk 0:02:59.7]} 2. Nc3 {[%clk 0:03:00.3]}
2... e6 {[%clk 0:02:59.4]} 3. g3 {[%clk 0:02:58.4]} 3... d5 {[%clk 0:02:59.1]}
4. Bg2 {[%clk 0:02:58]} 4... Nf6 {[%clk 0:02:59.2]} 5. d3 {[%clk 0:02:40.6]}
5... Nc6 {[%clk 0:02:58.7]} 6. Nge2 {[%clk 0:02:39.1]} 6... Be7 {[%clk 0:02:57]}
7. O-O {[%clk 0:02:39.1]} 7... O-O {[%clk 0:02:54.8]} 8. h3 {[%clk 0:02:38]}
8... Rb8 {[%clk 0:02:49.3]} 9. exd5 {[%clk 0:02:37.6]} 9... Nxd5 {[%clk
0:02:47]} 10. Nxd5 {[%clk 0:02:36]} 10... exd5 {[%clk 0:02:47.9]} 11. d4 {[%clk
0:02:36.9]} 11... Be6 {[%clk 0:02:46.3]} 12. Bf4 {[%clk 0:02:35.5]} 12... Rc8
{[%clk 0:02:41.6]} 13. Be3 {[%clk 0:02:34.1]} 13... Qb6 {[%clk 0:02:35.7]} 14.
b3 {[%clk 0:02:29]} 14... Rfe8 {[%clk 0:02:26]} 15. c3 {[%clk 0:02:23.1]} 15...
cxd4 {[%clk 0:02:22.2]} 16. Nxd4 {[%clk 0:02:22.7]} 16... Bc5 {[%clk 0:02:22.6]}
17. Rc1 {[%clk 0:02:10.1]} 17... Nxd4 {[%clk 0:02:20.4]} 18. Bxd4 {[%clk
0:02:10.2]} 18... Bxd4 {[%clk 0:02:20.4]} 19. Qxd4 {[%clk 0:02:10.8]} 19... Qxd4
{[%clk 0:02:20.8]} 20. cxd4 {[%clk 0:02:11.1]} 20... Kf8 {[%clk 0:02:21.7]} 21.
Rfe1 {[%clk 0:02:08.2]} 21... b6 {[%clk 0:02:14.4]} 22. h4 {[%clk 0:02:06.6]}
22... Red8 {[%clk 0:02:13.3]} 23. Bf1 {[%clk 0:02:04.9]} 23... Ke7 {[%clk
0:02:11.3]} 24. Ba6 {[%clk 0:02:04.4]} 24... Rxc1 {[%clk 0:02:11.6]} 25. Rxc1
{[%clk 0:02:05.3]} 25... Kd6 {[%clk 0:02:12.2]} 26. f3 {[%clk 0:01:58.3]} 26...
h6 {[%clk 0:02:12]} 27. Kf2 {[%clk 0:01:58.5]} 27... g5 {[%clk 0:02:12.5]} 28.
hxg5 {[%clk 0:01:54.2]} 28... hxg5 {[%clk 0:02:13.4]} 29. Rh1 {[%clk 0:01:54.2]}
29... Rd7 {[%clk 0:02:09.8]} 30. Rh5 {[%clk 0:01:51.1]} 30... Rc7 {[%clk
0:02:09.8]} 31. Bd3 {[%clk 0:01:49.5]} 31... g4 {[%clk 0:02:02.5]} 32. f4 {[%clk
0:01:49.6]} 32... Rc1 {[%clk 0:02:00.6]} 33. f5 {[%clk 0:01:47.4]} 33... Bd7
{[%clk 0:02:00.8]} 34. Ke3 {[%clk 0:01:38.9]} 34... Ra1 {[%clk 0:01:54.9]} 35.
Rh2 {[%clk 0:01:38.6]} 35... a5 {[%clk 0:01:43.6]} 36. Rd2 {[%clk 0:01:37]}
36... b5 {[%clk 0:01:27.7]} 37. Kf4 {[%clk 0:01:35.5]} 37... b4 {[%clk
0:01:26.6]} 38. Kxg4 {[%clk 0:01:35.3]} 38... a4 {[%clk 0:01:26.8]} 39. bxa4
{[%clk 0:01:34.6]} 39... Bxa4 {[%clk 0:01:27.7]} 40. Kg5 {[%clk 0:01:32.9]}
40... Ke7 {[%clk 0:01:20.3]} 41. g4 {[%clk 0:01:32.4]} 41... Rg1 {[%clk
0:01:14.2]} 42. Bc2 {[%clk 0:01:25.3]} 42... Bb5 {[%clk 0:01:11.3]} 43. Bb3
{[%clk 0:01:23.7]} 43... Bc4 {[%clk 0:01:11.2]} 44. Rc2 {[%clk 0:01:23.9]} 44...
Bxb3 {[%clk 0:00:51.3]} 45. Re2+ {[%clk 0:01:19.4]} 45... Kf8 {[%clk 0:00:48.7]}
46. axb3 {[%clk 0:01:20.3]} 46... Rd1 {[%clk 0:00:46.9]} 47. Kf6 {[%clk
0:01:18.7]} 47... Rxd4 {[%clk 0:00:46.9]} 48. Ra2 {[%clk 0:01:15.4]} 48... Ke8
{[%clk 0:00:44.7]} 49. g5 {[%clk 0:01:14.9]} 49... Rf4 {[%clk 0:00:42.5]} 50.
Ra8+ {[%clk 0:01:11.6]} 50... Kd7 {[%clk 0:00:42.5]} 51. Ra7+ {[%clk 0:01:12.2]}
51... Kd6 {[%clk 0:00:42.1]} 52. Rxf7 {[%clk 0:01:12]} 52... d4 {[%clk
0:00:42.4]} 53. Rf8 {[%clk 0:01:05.6]} 53... Kd7 {[%clk 0:00:42]} 54. Rf7+
{[%clk 0:00:51.2]} 54... Kd6 {[%clk 0:00:39.7]} 55. g6 {[%clk 0:00:48.5]} 55...
d3 {[%clk 0:00:39.7]} 56. Ra7 {[%clk 0:00:46.6]} 56... Kd5 {[%clk 0:00:23.8]}
57. g7 {[%clk 0:00:42.9]} 57... Rg4 {[%clk 0:00:23.6]} 58. Kf7 {[%clk
0:00:38.6]} 58... Ke4 {[%clk 0:00:20.9]} 59. f6 {[%clk 0:00:38.3]} 59... d2
{[%clk 0:00:20.7]} 60. Rd7 {[%clk 0:00:38]} 60... Ke3 {[%clk 0:00:20.3]} 61.
g8=Q {[%clk 0:00:37.3]} 61... Rxg8 {[%clk 0:00:20.6]} 62. Kxg8 {[%clk
0:00:37.6]} 1-0